bitfinex-derivatives/quotes_SOLF0:USTF0_20241211
["timestamp","ask_amount","ask_price","bid_price","bid_amount"]
[1733920310693,2.2185,225.27,225.21,11.71924214]
[1733920310896,2.2185,225.27,225.23,2.2189]
[1733920311099,2.2185,225.27,225.21,11.71924214]
[1733920311401,2.2184,225.28,225.24,2.2188]
[1733920314327,2.2183,225.3,225.25,2.2187]
[1733920314490,2.1,225.31,225.24,10.39984214]
[1733920314899,2.1,225.31,225.28,2.2184]
[1733920315509,4.3181,225.31,225.28,2.2184]
[1733920316203,2.1,225.31,225.29,2.2182]
[1733920316499,2.1,225.31,225.24,10.39984214]
[1733920316705,10.39984214,225.37,225.24,10.39984214]
[1733920316706,2.1,225.33,225.24,10.39984214]
[1733920317291,4.318,225.33,225.29,2.2182]
[1733920317911,2.218,225.32,225.28,8.87427149]
[1733920318803,2.1,225.33,225.25,2.2187]
[1733920318804,2.2181,225.31,225.25,2.2187]
[1733920319008,2.2181,225.31,225.26,6.65587149]
[1733920319703,6.65587149,225.31,225.21,1.3194]
[1733920319942,6.65587149,225.29,225.22,6.65587149]
[1733920320216,2.2187,225.26,225.22,8.87477149]
[1733920320509,2.1,225.28,225.22,6.65587149]
[1733920321015,2.2186,225.27,225.23,2.2189]
[1733920321508,2.1,225.28,225.22,6.65587149]
[1733920323009,2.1,225.28,225.24,6.65587149]
[1733920323329,2.1,225.32,225.26,6.65587149]
[1733920323525,2.1,225.31,225.29,6.65587149]
[1733920324957,2.1,225.32,225.29,6.65587149]
[1733920325408,2.1,225.34,225.31,6.65587149]
[1733920325608,2.1,225.35,225.33,6.65587149]
[1733920325905,2.1,225.37,225.33,6.65587149]
[1733920326607,2.1,225.37,225.33,8.87367149]
[1733920326810,49.46244309,225.49,225.33,6.65587149]
[1733920327026,49.46244309,225.49,225.27,2.1]
[1733920327027,6.65587149,225.39,225.27,2.1]
[1733920327310,6.65587149,225.39,225.31,6.65587149]
[1733920327510,2.2176,225.36,225.31,8.87387149]
[1733920327716,2.1,225.36,225.27,2.7334]
[1733920327921,2.1,225.36,225.29,6.65587149]
[1733920328110,2.2178,225.34,225.29,8.87407149]
[1733920328415,2.2178,225.34,225.29,6.65587149]
[1733920329613,2.2178,225.34,225.3,2.2182]
[1733920330012,2.2178,225.34,225.3,8.87407149]
[1733920333018,2.2186,225.27,225.24,6.16079517]
[1733920333217,2.1,225.27,225.21,6.65587149]
[1733920333611,2.1,225.27,225.23,6.65587149]
[1733920334935,2.1,225.27,225.24,2.2188]
[1733920335622,4.3185,225.27,225.23,8.87477149]
[1733920336611,4.3185,225.27,225.23,2.2189]
[1733920336819,6.65587149,225.26,225.19,72.16864415]
[1733920337035,6.65587149,225.26,225.19,78.82451564]
[1733920337427,6.65587149,225.26,225.22,2.219]
[1733920337814,6.65587149,225.26,225.19,78.82451564]
[1733920338615,2.2187,225.25,225.21,2.2191]
[1733920339518,8.87447149,225.26,225.22,2.219]
[1733920340118,2.1,225.27,225.23,2.2189]
[1733920340412,2.1,225.28,225.25,6.65587149]
[1733920340815,2.1,225.3,225.26,2.2185]
[1733920342620,2.1,225.3,225.27,2.2185]
[1733920344919,6.65587149,225.33,225.25,6.65587149]
[1733920345118,6.65587149,225.36,225.29,6.65587149]
[1733920345326,6.65587149,225.36,225.32,2.218]
[1733920345519,2.1,225.35,225.31,6.65587149]
[1733920346316,6.65587149,225.38,225.34,2.2178]
[1733920346518,2.1,225.37,225.34,2.2178]
[1733920347126,202.25460532,225.61,225.33,6.65587149]
[1733920347428,2.1,225.47,225.37,6.65587149]
[1733920347724,2.2169,225.44,225.38,2.2173]
[1733920347923,2.2169,225.44,225.37,6.65587149]
[1733920348631,2.2169,225.44,225.39,2.2173]
[1733920349031,8.87307149,225.41,225.36,2.2176]
[1733920349334,6.65587149,225.41,225.34,6.65587149]
[1733920349526,2.1,225.4,225.34,6.65587149]
[1733920350035,6.65587149,225.39,225.34,6.65587149]
[1733920350529,6.65587149,225.39,225.33,1.4173]
[1733920350831,8.87317149,225.39,225.35,2.2177]
[1733920351217,2.2173,225.39,225.35,2.2177]
[1733920352227,2.2173,225.39,225.33,3.6351]
[1733920352421,2.2175,225.38,225.33,2.2178]
[1733920352730,12.49556052,225.4,225.3,2.2181]
[1733920353622,12.49556052,225.4,225.28,2.2183]
[1733920354227,2.2179,225.34,225.27,1.43]
[1733920354431,4.3179,225.34,225.29,2.2183]
[1733920355227,4.3179,225.34,225.3,2.2182]
[1733920355933,4.3179,225.34,225.29,2.2183]
[1733920356635,2.1,225.34,225.31,2.2181]
[1733920357528,2.1,225.34,225.27,1.43]
[1733920357729,2.1,225.34,225.32,2.2179]
[1733920358259,2.1,225.34,225.33,2.2179]
[1733920358548,2.1,225.39,225.29,10.39556052]
[1733920358832,2.1,225.39,225.29,12.49556052]
[1733920359029,2.1,225.41,225.32,10.39556052]
[1733920359599,2.1,225.41,225.33,1.3325]
[1733920359833,2.1,225.41,225.38,2.2173]
[1733920360930,2.2169,225.43,225.38,2.2173]
[1733920361142,4.3169,225.43,225.38,2.2173]
[1733920363127,2.2169,225.43,225.38,2.2173]
[1733920363325,4.3169,225.43,225.38,2.2173]
[1733920364337,2.2172,225.4,225.33,1.3325]
[1733920365341,2.1,225.43,225.33,1.3325]
[1733920365534,2.2174,225.39,225.35,2.2177]
[1733920366934,2.2171,225.41,225.37,2.2175]
[1733920367137,2.1,225.41,225.37,2.2175]
[1733920367545,4.3172,225.41,225.36,2.2176]
[1733920368036,2.1,225.41,225.37,2.2174]
[1733920369439,2.1,225.41,225.39,2.2173]
[1733920369645,10.39556052,225.49,225.36,10.39556052]
[1733920369849,2.1,225.48,225.36,10.39556052]
[1733920370033,2.1,225.47,225.42,2.2169]
[1733920370636,4.3166,225.47,225.42,2.2169]
[1733920371338,4.3166,225.47,225.36,10.39556052]
[1733920371732,4.3166,225.47,225.43,2.2169]
[1733920371934,2.1,225.47,225.36,10.39556052]
[1733920372131,2.1,225.49,225.39,10.39556052]
[1733920372340,2.1,225.49,225.46,2.2166]
[1733920372536,1.3258,225.58,225.42,10.39556052]
[1733920372537,10.39556052,225.55,225.42,10.39556052]
[1733920372732,2.1,225.55,225.45,10.39556052]
[1733920373114,2.1,225.55,225.45,12.49556052]
[1733920373541,2.1,225.64,225.51,10.39556052]
[1733920373742,2.1,225.64,225.51,12.49556052]
[1733920374145,2.2153,225.6,225.53,2.2159]
[1733920374639,2.2153,225.6,225.51,12.49556052]
[1733920375044,2.1,225.64,225.55,2.2158]
[1733920375437,2.2155,225.58,225.52,2.216]
[1733920375634,10.39556052,225.62,225.48,12.49556052]
[1733920375635,2.1,225.59,225.48,12.49556052]
[1733920376158,2.2155,225.58,225.51,2.2161]
[1733920376435,2.1,225.59,225.51,2.2161]
[1733920377341,2.2157,225.56,225.48,10.39556052]
[1733920377544,12.49556052,225.59,225.48,10.39556052]
[1733920378445,2.2157,225.56,225.5,2.2162]
[1733920379144,2.1,225.59,225.49,5.25335922]
[1733920379367,5.26918316,225.65,225.51,10.39556052]
[1733920379545,2.2153,225.61,225.54,2.2158]
[1733920379883,10.39556052,225.64,225.51,10.39556052]
[1733920380154,2.1,225.67,225.55,2.2157]
[1733920380155,2.2151,225.62,225.55,2.2157]
[1733920380445,2.1,225.61,225.52,1.3283]
[1733920380647,5.23899706,225.66,225.52,1.3283]
[1733920380853,2.2153,225.61,225.55,2.2157]
[1733920381053,2.1,225.6,225.55,2.2157]
[1733920381245,2.1,225.6,225.52,1.3283]
[1733920381452,2.1,225.6,225.52,3.5443]
[1733920381742,2.1,225.6,225.49,5.25335922]
[1733920382752,2.2157,225.56,225.49,5.25335922]
[1733920383141,2.1,225.6,225.49,5.25335922]
[1733920383349,2.2159,225.54,225.49,7.46965922]
[1733920383554,2.1,225.54,225.49,5.25335922]
[1733920384742,2.1,225.54,225.5,2.2162]
[1733920385445,4.3159,225.54,225.5,2.2162]
[1733920385752,10.39556052,225.61,225.51,2.2161]
[1733920385753,2.1,225.55,225.51,2.2161]
[1733920385949,2.1,225.55,225.49,5.25335922]
[1733920386346,5.23899706,225.66,225.49,5.25335922]
[1733920386547,2.1,225.65,225.48,10.39556052]
[1733920386850,2.1,225.65,225.45,11.73996052]
[1733920386851,2.2161,225.52,225.45,11.73996052]
[1733920387046,2.1,225.51,225.45,11.73996052]
[1733920387253,2.1,225.5,225.45,11.73996052]
[1733920387742,2.1,225.54,225.45,11.73996052]
[1733920387945,2.1,225.54,225.52,2.216]
[1733920388152,2.1,225.54,225.48,10.39556052]
[1733920389548,2.1,225.54,225.5,2.2162]
[1733920389757,2.1,225.54,225.48,10.39556052]
[1733920390560,2.1,225.54,225.52,2.216]
[1733920391153,2.1,225.54,225.48,10.39556052]
[1733920391357,2.1,225.54,225.51,2.2162]
[1733920392174,2.1,225.54,225.48,10.39556052]
[1733920392431,2.1,225.54,225.45,11.73996052]
[1733920392660,2.2161,225.52,225.45,11.73996052]
[1733920393252,2.2161,225.52,225.47,2.2165]
[1733920394062,2.2163,225.5,225.45,11.73996052]
[1733920394460,2.1,225.54,225.45,11.73996052]
[1733920394765,2.1,225.54,225.44,1.408]
[1733920394965,2.1,225.54,225.42,10.39556052]
[1733920395164,10.39556052,225.53,225.42,10.39556052]
[1733920395367,2.2167,225.46,225.41,69.45508264]
[1733920395692,2.1,225.47,225.41,69.45508264]
[1733920396458,4.3166,225.47,225.41,74.68263614]
[1733920397063,2.1,225.47,225.46,2.2166]
[1733920397264,2.1,225.47,225.42,10.39556052]
[1733920397664,4.3166,225.47,225.42,2.217]
[1733920397867,4.3166,225.47,225.41,74.68263614]
[1733920398358,10.39556052,225.53,225.45,2.2167]
[1733920398555,2.1,225.52,225.45,2.2167]
[1733920398864,2.1,225.52,225.41,74.68263614]
[1733920398865,2.1,225.52,225.42,10.39556052]
[1733920399167,2.2162,225.51,225.42,13.12826052]
[1733920399357,2.1,225.52,225.42,13.12826052]
[1733920399558,2.2166,225.47,225.43,2.2169]
[1733920399763,4.3166,225.47,225.43,2.2169]
[1733920400564,4.3166,225.47,225.44,2.2168]
[1733920400565,2.1,225.47,225.44,2.2168]
[1733920402375,2.1,225.47,225.42,2.7327]
[1733920402677,10.39556052,225.53,225.42,2.7327]
[1733920402949,1.378,225.56,225.42,13.12826052]
[1733920402950,2.1,225.52,225.42,13.12826052]
[1733920403180,2.2162,225.51,225.42,13.12826052]
[1733920403975,2.1,225.52,225.44,2.2168]
[1733920403976,2.2164,225.49,225.44,2.2168]
[1733920404360,2.2164,225.49,225.42,2.7327]
[1733920404964,2.2164,225.49,225.44,2.2168]
[1733920405369,2.2164,225.49,225.42,2.7327]
[1733920405565,2.2164,225.49,225.45,2.2167]
[1733920407076,2.1,225.52,225.45,2.2167]
[1733920407370,2.1,225.52,225.48,6.64594711]
[1733920407773,4.3161,225.52,225.48,6.64594711]
[1733920408577,2.2163,225.5,225.45,8.86264711]
[1733920408772,8.74594711,225.52,225.42,2.7327]
[1733920408969,2.2165,225.48,225.44,6.64594711]
[1733920409670,2.2165,225.48,225.44,8.86274711]
[1733920410476,2.2165,225.48,225.45,2.2167]
[1733920410874,8.74594711,225.52,225.44,6.64594711]
[1733920411269,8.74594711,225.52,225.46,6.64594711]
[1733920412077,8.74594711,225.52,225.46,8.86254711]
[1733920412467,8.74594711,225.52,225.46,6.64594711]
[1733920412679,8.74594711,225.52,225.47,2.2165]
[1733920413273,2.1,225.51,225.46,6.64594711]
[1733920414276,2.1,225.51,225.47,2.2165]
[1733920414277,4.3162,225.51,225.47,2.2165]
[1733920414474,6.64594711,225.5,225.37,6.16079517]
[1733920414779,6.64594711,225.46,225.39,6.64594711]
[1733920414971,2.1,225.45,225.39,6.64594711]
[1733920415176,2.1,225.45,225.41,6.64594711]
[1733920415671,2.1,225.45,225.43,6.64594711]
[1733920415873,2.1,225.46,225.43,6.64594711]
[1733920416137,1.378,225.56,225.36,9.46913398]
[1733920416138,2.1,225.47,225.46,6.64594711]
[1733920416284,2.1,225.48,225.46,6.64594711]
[1733920417184,2.1,225.48,225.45,10.38233848]
[1733920417681,2.1,225.48,225.47,2.2165]
[1733920418375,2.216,225.53,225.48,2.2163]
[1733920418577,2.1,225.52,225.48,2.2163]
[1733920418886,2.1,225.52,225.45,10.38233848]
[1733920419530,4.3161,225.52,225.47,2.2165]
[1733920421278,2.1,225.52,225.47,2.2165]
[1733920421875,2.1,225.52,225.42,2.217]
[1733920422479,2.1,225.52,225.38,10.38233848]
[1733920422784,1.3861,225.51,225.38,10.38233848]
[1733920423285,2.7941,225.51,225.38,10.38233848]
[1733920423684,2.7941,225.51,225.41,10.38233848]
[1733920423986,2.2164,225.48,225.41,12.59943848]
[1733920424285,2.1,225.47,225.41,10.38233848]
[1733920424978,2.2167,225.46,225.41,10.38233848]
[1733920425693,4.3165,225.47,225.43,2.2169]
[1733920425893,2.1,225.47,225.41,10.38233848]
[1733920426387,2.1,225.47,225.38,10.38233848]
[1733920426845,2.1,225.47,225.34,0.24678]
[1733920426846,2.1,225.47,225.35,10.38233848]
[1733920426999,2.2173,225.4,225.35,12.59993848]
[1733920427176,2.1,225.39,225.35,2.2176]
[1733920427378,2.2176,225.37,225.34,0.24678]
[1733920427609,2.1,225.39,225.34,0.24678]
[1733920428178,2.2174,225.38,225.34,2.46458]
[1733920428786,2.2174,225.38,225.34,0.24678]
[1733920428992,2.1,225.39,225.34,0.24678]
[1733920428993,2.2175,225.37,225.34,0.24678]
[1733920429481,2.1,225.39,225.34,0.24678]
[1733920430980,2.2177,225.35,225.34,0.24678]
[1733920432682,2.2177,225.35,225.28,2.2184]
[1733920432683,2.1,225.39,225.28,2.2184]
[1733920432899,2.2179,225.34,225.28,2.2184]
[1733920433088,2.1,225.33,225.28,2.2184]
[1733920433287,2.1,225.33,225.29,2.2182]
[1733920433885,2.1,225.33,225.31,2.2181]
[1733920434285,2.1,225.33,225.32,10.38233848]
[1733920435289,2.1,225.33,225.32,12.60033848]
[1733920435488,2.2175,225.38,225.32,10.38233848]
[1733920435489,2.1,225.36,225.32,10.38233848]
[1733920435893,2.1,225.36,225.33,2.2179]
[1733920436121,2.1,225.36,225.32,10.38233848]
[1733920438890,1.4317,225.49,225.35,10.38233848]
[1733920438891,2.1,225.38,225.35,10.38233848]
[1733920439091,1.4317,225.49,225.35,10.38233848]
[1733920439092,2.1,225.41,225.35,10.38233848]
[1733920439391,2.1,225.42,225.35,10.38233848]
[1733920439622,2.1,225.42,225.38,2.2174]
[1733920440492,4.3171,225.42,225.38,2.2174]
[1733920440688,4.3171,225.42,225.37,2.2175]
[1733920440895,2.1,225.42,225.35,10.38233848]
[1733920441092,2.2171,225.41,225.36,2.2176]
[1733920441706,2.1,225.4,225.36,2.2176]
[1733920441952,2.1,225.4,225.38,2.2174]
[1733920442113,2.1,225.4,225.32,2.8493]
[1733920442391,2.1,225.43,225.38,10.38233848]
[1733920442600,2.1,225.44,225.38,10.38233848]
[1733920443696,2.1,225.44,225.41,2.2171]
[1733920445998,2.1,225.44,225.43,2.2169]
[1733920446194,10.38233848,225.53,225.39,1.3578]
[1733920446492,2.1,225.52,225.41,10.38233848]
[1733920447294,2.1,225.51,225.45,2.2167]
[1733920447596,2.1,225.51,225.41,10.38233848]
[1733920448196,2.2164,225.49,225.44,2.2168]
[1733920449091,2.2164,225.49,225.45,2.2167]
[1733920450304,2.2164,225.49,225.44,2.2168]
[1733920450700,2.1,225.48,225.44,2.2168]
[1733920452705,4.3164,225.48,225.44,2.2168]
[1733920453295,4.3164,225.48,225.45,6.64653355]
[1733920453991,4.3164,225.48,225.43,2.2169]
[1733920453992,2.2166,225.47,225.43,2.2169]
[1733920454192,2.2166,225.47,225.45,6.64653355]
[1733920455285,2.1,225.48,225.45,6.64653355]
[1733920455400,2.1,225.48,225.47,6.64653355]
[1733920456108,2.1,225.48,225.4,2.6388]
[1733920456301,2.1,225.48,225.44,6.64653355]
[1733920456506,2.1,225.48,225.4,2.6388]
[1733920456507,2.2168,225.44,225.42,6.64653355]
[1733920456705,8.74653355,225.48,225.42,6.64653355]
[1733920456908,2.1,225.47,225.4,6.64653355]
[1733920457208,6.64653355,225.46,225.38,6.64653355]
[1733920457900,2.217,225.42,225.38,8.86393355]
[1733920458099,2.1,225.41,225.38,8.86393355]
[1733920458308,2.1,225.41,225.32,4.1402]
[1733920458309,2.1,225.41,225.4,6.64653355]
[1733920458693,4.061,225.53,225.4,6.64653355]
[1733920458694,2.1,225.43,225.4,6.64653355]
[1733920458856,2.1,225.43,225.42,6.64653355]
[1733920462107,2.1,225.43,225.42,8.86353355]
[1733920462302,2.2167,225.46,225.42,8.86353355]
[1733920462303,2.1,225.48,225.42,6.64653355]
[1733920462679,2.1,225.48,225.45,6.64653355]
[1733920462799,2.2163,225.5,225.45,6.64653355]
[1733920463003,2.1,225.49,225.45,6.64653355]
[1733920463206,2.1,225.49,225.47,6.64653355]
[1733920463502,4.3164,225.49,225.47,6.64653355]
[1733920463704,2.1,225.49,225.45,6.64653355]
[1733920464696,2.2164,225.48,225.45,6.64653355]
[1733920466603,2.7375,225.59,225.47,6.64653355]
[1733920466803,6.64653355,225.55,225.47,6.64653355]
[1733920467193,2.2161,225.52,225.47,8.86303355]
[1733920467399,4.3161,225.52,225.47,6.64653355]
[1733920467601,2.1,225.52,225.49,6.64653355]
[1733920468904,4.3161,225.52,225.49,6.64653355]
[1733920469396,2.1,225.52,225.49,6.64653355]
[1733920469606,2.1,225.52,225.49,8.86283355]
[1733920471022,2.1,225.52,225.51,6.64653355]
[1733920471401,6.64653355,225.56,225.51,6.64653355]
[1733920471606,2.1,225.55,225.51,6.64653355]
[1733920471912,2.1,225.55,225.49,8.86283355]
[1733920471913,2.216,225.53,225.49,8.86283355]
[1733920472106,2.1,225.55,225.49,6.64653355]
[1733920472301,2.2159,225.54,225.49,6.64653355]
[1733920472501,2.1,225.55,225.49,6.64653355]
[1733920472706,2.1,225.54,225.49,6.64653355]
[1733920472907,2.1,225.53,225.49,6.64653355]
[1733920473111,2.1,225.53,225.49,8.86283355]
[1733920473809,4.316,225.53,225.49,8.86283355]
[1733920477716,2.1,225.52,225.49,8.86283355]
[1733920478411,4.3161,225.52,225.49,8.86283355]
[1733920479112,2.1,225.52,225.49,6.64653355]
[1733920479414,2.1,225.52,225.5,2.2162]
[1733920480115,2.817,225.66,225.52,2.2161]
[1733920480311,6.64653355,225.59,225.52,2.2161]
[1733920480510,2.817,225.66,225.53,6.64653355]
[1733920480705,2.2155,225.58,225.55,2.2157]
[1733920480907,2.2155,225.58,225.53,6.64653355]
[1733920481712,2.2155,225.58,225.54,2.2158]
[1733920481913,2.1,225.57,225.54,2.2158]
[1733920483614,2.1,225.57,225.53,6.64653355]
[1733920483816,2.2157,225.56,225.53,6.64653355]
[1733920484614,2.2157,225.56,225.52,2.216]
[1733920484812,2.2157,225.56,225.52,8.86253355]
[1733920485256,2.1,225.57,225.53,2.2159]
[1733920486715,4.3156,225.57,225.53,2.2159]
[1733920490119,2.1,225.57,225.53,2.2159]
[1733920490318,2.2157,225.56,225.53,2.2159]
[1733920490524,2.1,225.57,225.42,67.6736066]
[1733920490525,6.64653355,225.55,225.42,67.6736066]
[1733920490718,6.64653355,225.55,225.5,6.64653355]
[1733920490927,2.2158,225.55,225.5,6.64653355]
[1733920491623,2.2158,225.55,225.51,2.2161]
[1733920494422,2.2159,225.54,225.51,2.2161]
[1733920495576,2.2159,225.54,225.5,8.86273355]
[1733920496224,8.74653355,225.57,225.51,2.2161]
[1733920496435,2.2158,225.55,225.51,2.2161]
[1733920496626,2.2158,225.55,225.5,6.64653355]
[1733920496827,2.1,225.57,225.52,6.64653355]
[1733920498019,4.3156,225.57,225.53,2.216]
[1733920498631,2.2157,225.56,225.53,2.216]
[1733920498829,2.2157,225.56,225.52,6.64653355]
[1733920499129,2.2159,225.54,225.5,6.64653355]
[1733920500427,2.1,225.57,225.52,6.64653355]
[1733920500635,2.2158,225.55,225.52,6.64653355]
[1733920501030,2.2159,225.54,225.52,6.64653355]
[1733920502239,2.817,225.66,225.49,1.441]
[1733920502431,6.64653355,225.59,225.51,6.64653355]
[1733920502730,2.1,225.58,225.51,6.64653355]
[1733920503135,2.1,225.58,225.51,8.86263355]
[1733920503822,2.2159,225.55,225.51,8.86263355]
[1733920505294,2.2157,225.57,225.53,8.86243355]
[1733920505445,2.1,225.57,225.55,6.64653355]
[1733920507382,449.15522563,225.84,225.55,6.64653355]
[1733920507549,449.15522563,225.84,225.61,6.64653355]
[1733920507550,2.1,225.66,225.61,6.64653355]
[1733920508035,4.3147,225.66,225.63,6.64653355]
[1733920510640,2.08,225.65,225.63,6.64653355]
[1733920510834,2.08,225.65,225.63,8.86153355]
[1733920511119,2.08,225.65,225.63,6.64653355]
[1733920511633,4.2948,225.65,225.54,1.4017]
[1733920511838,2.08,225.65,225.64,6.64653355]
[1733920516641,2.08,225.65,225.54,1.4017]
[1733920516842,2.08,225.65,225.6,6.64653355]
[1733920517139,2.08,225.65,225.62,6.64653355]
[1733920518045,2.215,225.64,225.62,6.64653355]
[1733920518540,2.08,225.65,225.62,6.64653355]
[1733920519343,2.2149,225.64,225.62,6.64653355]
[1733920519640,2.08,225.65,225.6,6.64653355]
[1733920520245,2.2151,225.63,225.6,6.64653355]
[1733920523041,2.2151,225.62,225.6,6.64653355]
[1733920523845,2.08,225.63,225.54,1.4017]
[1733920524148,2.08,225.63,225.58,6.64653355]
[1733920524554,2.08,225.63,225.6,6.64653355]
[1733920525298,4.295,225.63,225.6,6.64653355]
[1733920526545,2.2151,225.62,225.6,6.64653355]
[1733920528147,2.2151,225.62,225.58,8.86193355]
[1733920528842,2.08,225.62,225.59,2.2153]
[1733920529448,4.2951,225.62,225.58,8.86203355]
[1733920530919,4.2951,225.62,225.6,6.64653355]
[1733920530920,2.08,225.62,225.6,6.64653355]
[1733920531251,2.08,225.72,225.6,6.64653355]
[1733920531452,2.08,225.71,225.65,6.64653355]
[1733920531647,2.08,225.7,225.65,6.64653355]
[1733920532642,2.2144,225.69,225.65,8.86123355]
[1733920533909,2.08,225.7,225.67,6.64653355]
[1733920534171,2.2143,225.71,225.69,6.64653355]
[1733920534424,50.2901,225.83,225.7,6.64653355]
[1733920534545,6.64653355,225.79,225.72,6.64653355]
[1733920534852,2.08,225.78,225.72,6.64653355]
[1733920535151,4.2935,225.78,225.72,6.64653355]
[1733920535348,2.08,225.78,225.72,6.64653355]
[1733920535748,2.2138,225.76,225.72,6.64653355]
[1733920536349,6.64653355,225.77,225.62,1.3788]
[1733920536546,6.64653355,225.77,225.69,6.64653355]
[1733920537156,2.2141,225.72,225.69,6.64653355]
[1733920537374,2.08,225.71,225.69,6.64653355]
[1733920538459,2.08,225.71,225.68,6.64653355]
[1733920538949,4.2942,225.71,225.68,6.64653355]
[1733920539453,2.2143,225.7,225.68,6.64653355]
[1733920539644,2.2143,225.7,225.64,2.2149]
[1733920539854,8.72653355,225.71,225.66,6.64653355]
[1733920540057,8.72653355,225.71,225.62,1.69155]
[1733920540058,2.2146,225.67,225.64,6.64653355]
[1733920540698,2.2148,225.65,225.62,1.69155]
[1733920540856,2.2148,225.65,225.62,6.95928355]
[1733920541451,2.215,225.63,225.62,0.31275]
[1733920541859,8.86153355,225.63,225.62,0.31275]
[1733920542852,2.215,225.63,225.62,0.31275]
[1733920543052,8.86153355,225.63,225.62,0.31275]
[1733920543852,2.215,225.63,225.62,0.31275]
[1733920544084,8.86153355,225.63,225.62,0.31275]
[1733920544449,2.215,225.63,225.62,0.31275]
[1733920549652,1.3608,225.65,225.53,9.44073355]
[1733920549862,6.64653355,225.61,225.55,6.64653355]
[1733920550160,2.08,225.6,225.57,6.64653355]
[1733920551660,2.2155,225.59,225.57,6.64653355]
[1733920552658,2.2155,225.58,225.57,6.64653355]
[1733920553062,2.2155,225.58,225.53,5.0101]
[1733920553259,8.72653355,225.6,225.54,6.64653355]
[1733920554759,2.2158,225.55,225.54,6.64653355]
[1733920555170,8.72653355,225.6,225.54,6.64653355]
[1733920555171,2.08,225.6,225.54,6.64653355]
[1733920555360,2.2157,225.56,225.54,6.64653355]
[1733920555959,2.2156,225.58,225.54,6.64653355]
[1733920556162,2.2156,225.58,225.53,2.7942]
[1733920556163,2.08,225.6,225.56,6.64653355]
[1733920557671,2.2156,225.57,225.56,6.64653355]
[1733920557970,2.08,225.6,225.54,6.64653355]
[1733920558172,2.2157,225.56,225.54,6.64653355]
[1733920559065,2.2158,225.55,225.54,6.64653355]
[1733920560878,2.2159,225.54,225.53,1.3627]
[1733920561070,2.08,225.55,225.51,7.98523355]
[1733920561474,2.216,225.53,225.51,7.98523355]
[1733920562566,2.08,225.55,225.49,6.64653355]
[1733920562567,2.2161,225.52,225.49,6.64653355]
[1733920562836,2.2161,225.52,225.48,1.4215]
[1733920562837,2.2161,225.52,225.51,6.64653355]
[1733920563091,2.08,225.55,225.51,6.64653355]
[1733920563424,2.216,225.53,225.51,6.64653355]
[1733920563673,2.08,225.55,225.51,6.64653355]
[1733920564272,2.2161,225.52,225.51,6.64653355]
[1733920564466,6.64653355,225.54,225.48,1.4215]
[1733920564679,6.64653355,225.52,225.46,8.07553355]
[1733920565173,6.64653355,225.53,225.46,8.07553355]
[1733920565576,2.2164,225.49,225.46,8.07553355]
[1733920565780,2.08,225.48,225.46,8.07553355]
[1733920566273,4.2965,225.48,225.46,1.429]
[1733920566676,2.08,225.48,225.45,7.99513355]
[1733920566969,2.2165,225.47,225.45,6.64653355]
[1733920567776,2.2166,225.46,225.45,6.64653355]
[1733920569087,2.08,225.48,225.45,6.64653355]
[1733920569275,2.08,225.49,225.47,6.64653355]
[1733920569973,4.2964,225.49,225.47,6.64653355]
[1733920570985,2.2163,225.5,225.47,6.64653355]
[1733920571173,4.2963,225.5,225.47,6.64653355]
[1733920574281,4.2963,225.5,225.45,8.86323355]
[1733920574573,4.2963,225.5,225.45,6.64653355]
[1733920574777,4.2963,225.5,225.46,2.2166]
[1733920576099,2.08,225.5,225.47,6.64653355]
[1733920576280,2.08,225.5,225.47,8.86303355]
[1733920576980,2.216,225.53,225.49,8.86283355]